bitfinex-derivatives/quotes_ETHF0:USTF0_20230701
["timestamp","ask_amount","ask_price","bid_price","bid_amount"]
[1688216463889,8.43688055,1928.8,1928.6,4.98215]
[1688216464388,3.63058055,1928.8,1928.6,4.98215]
[1688216467396,0.8561544,1928.7,1928.6,4.98215]
[1688216470901,0.1,1929.0,1928.9,5.0]
[1688216471102,14.5988744,1929.8,1929.1,5.0]
[1688216471302,2.27312263,1929.8,1929.7,4.671]
[1688216471496,0.15,1930.0,1929.7,9.65298]
[1688216471689,0.31096,1929.8,1929.7,4.98198]
[1688216472303,0.28671635,1929.8,1929.7,3.13198]
[1688216472599,13.95998412,1929.9,1929.7,3.44296]
[1688216472789,11.03890047,1929.9,1929.7,3.44296]
[1688216473413,14.24670047,1929.9,1929.7,3.44296]
[1688216473701,2.28532226,1929.8,1929.7,3.44296]
[1688216473999,0.31096,1929.8,1929.7,3.44296]
[1688216476099,0.59767635,1929.8,1929.7,3.44296]
[1688216476293,0.57049093,1930.0,1929.7,6.65076]
[1688216476493,0.57049093,1930.0,1929.9,4.98194]
[1688216476696,0.88142093,1930.0,1929.9,4.98194]
[1688216477306,0.15,1930.0,1929.9,8.18974]
[1688216477507,0.15,1930.0,1929.9,4.98194]
[1688216478702,0.67065673,1930.0,1929.9,4.98194]
[1688216478900,0.15,1930.0,1929.9,4.98194]
[1688216479200,0.67066695,1930.0,1929.9,8.18974]
[1688216479405,0.15,1930.0,1929.9,8.18974]
[1688216479707,0.52153195,1930.0,1929.9,8.18974]
[1688216479898,0.31088,1930.3,1929.9,8.18974]
[1688216480205,0.31088,1930.3,1930.2,4.98189]
[1688216481194,0.31088,1930.3,1930.2,0.31089]
[1688216481195,5.7600662,1930.3,1930.2,0.31089]
[1688216481398,5.34259635,1930.3,1930.1,4.671]
[1688216481596,5.34259635,1930.3,1930.0,0.93269]
[1688216481597,8.14869,1930.2,1930.0,0.93269]
[1688216481793,8.14869,1930.2,1930.1,0.3109]
[1688216482202,9.00289047,1930.2,1930.1,0.3109]
[1688216482410,9.52652982,1930.2,1930.1,0.3109]
[1688216482598,9.52652982,1930.2,1930.0,0.93269]
[1688216485602,4.04232935,1930.2,1930.1,4.671]
[1688216486113,4.04232935,1930.2,1930.1,4.9819]
[1688216486405,4.3290457,1930.2,1930.1,4.9819]
[1688216486910,4.3290457,1930.2,1930.1,0.3109]
[1688216486911,8.9700457,1930.2,1930.1,0.3109]
[1688216488111,0.104,1930.1,1929.8,5.44828]
[1688216488306,3.2078,1929.9,1929.8,5.44828]
[1688216488613,3.93798232,1929.9,1929.8,5.44828]
[1688216488811,3.93798232,1929.9,1929.8,4.671]
[1688216489013,3.93798232,1929.9,1929.8,4.98195]
[1688216489612,3.93798232,1929.9,1929.8,4.671]
[1688216489812,3.93798232,1929.9,1929.8,4.98195]
[1688216490015,3.93798232,1929.9,1929.8,4.671]
[1688216490214,3.93798232,1929.9,1929.7,0.7774]
[1688216490215,0.104,1929.8,1929.6,0.00777303]
[1688216490510,9.32291482,1929.7,1929.6,0.00777303]
[1688216491314,14.45781482,1929.7,1929.6,0.00777303]
[1688216491906,14.45781482,1929.7,1929.2,5.44853]
[1688216492216,3.51883,1929.3,1929.2,5.44853]
[1688216492417,4.37303047,1929.3,1929.2,5.44853]
[1688216492716,4.60001355,1929.3,1929.2,5.44853]
[1688216493619,4.50855027,1929.3,1929.2,5.44853]
[1688216494111,3.6543498,1929.3,1929.2,5.44853]
[1688216494913,3.94106615,1929.3,1929.2,5.44853]
[1688216495312,3.6543498,1929.3,1929.2,5.44853]
[1688216495815,0.4465498,1929.3,1929.2,7.98553]
[1688216496909,0.1355198,1929.3,1929.2,7.98553]
[1688216497110,4.85244883,1929.4,1929.2,7.98553]
[1688216497306,4.85244883,1929.4,1929.3,7.50503]
[1688216498112,5.16346883,1929.4,1929.3,7.50503]
[1688216498306,0.00774883,1929.4,1929.3,7.50503]
[1688216499417,0.00774883,1929.4,1929.3,10.71283]
[1688216501120,0.00774883,1929.4,1929.3,15.71283]
[1688216504017,0.60548518,1929.4,1929.3,12.50503]
[1688216504220,0.60548518,1929.4,1929.3,7.50503]
[1688216504521,0.60548518,1929.4,1929.3,12.50503]
[1688216504826,0.60548518,1929.4,1929.3,7.50503]
[1688216510317,0.31876883,1929.4,1929.3,7.50503]
[1688216512524,0.44439497,1929.4,1929.3,7.50503]
[1688216513620,0.44439497,1929.4,1929.3,0.31103]
[1688216513822,0.73111132,1929.4,1929.3,0.31103]
[1688216524836,0.44439497,1929.4,1929.3,0.31103]
[1688216525132,0.73111132,1929.4,1929.3,0.31103]
[1688216526335,7.97311132,1929.4,1929.1,1.36163239]
[1688216526535,3.2078,1929.2,1929.1,1.36163239]
[1688216526736,3.80556635,1929.2,1929.1,1.36163239]
[1688216526931,3.93180934,1929.2,1929.1,1.36163239]
[1688216527937,11.26980934,1929.2,1929.1,0.94088504]
[1688216528137,13.53017712,1929.2,1929.1,0.94088504]
[1688216529434,13.42617712,1929.2,1929.1,0.94088504]
[1688216531430,13.53017712,1929.2,1929.1,0.94088504]
[1688216531834,13.53017712,1929.2,1929.1,0.00777504]
[1688216533446,13.42617712,1929.2,1929.1,0.00777504]
[1688216535541,13.42617712,1929.2,1929.1,0.31884504]
[1688216537949,13.42617712,1929.2,1929.1,0.00777504]
[1688216539442,13.42617712,1929.2,1929.1,0.31884504]
[1688216540241,13.42617712,1929.2,1929.1,0.00777504]
[1688216540442,13.42617712,1929.2,1929.1,0.31884504]
[1688216540644,13.13946077,1929.2,1929.1,0.31884504]
[1688216541046,13.42617712,1929.2,1929.1,0.31884504]
[1688216542947,13.13946077,1929.2,1929.1,0.31884504]
[1688216543447,13.42617712,1929.2,1929.1,0.31884504]
[1688216547157,13.13946077,1929.2,1929.1,0.31884504]
[1688216547358,5.90546077,1929.2,1929.1,0.31884504]
[1688216547563,3.64509299,1929.2,1929.1,0.31884504]
[1688216548460,3.93180934,1929.2,1929.1,0.31884504]
[1688216549166,3.64509299,1929.2,1929.1,0.31884504]
[1688216550167,3.93180934,1929.2,1929.1,0.31884504]
[1688216550363,0.12624299,1929.2,1929.1,0.31884504]
[1688216550567,0.12624299,1929.2,1929.1,7.55884504]
[1688216552769,0.43729299,1929.2,1929.1,7.55884504]
[1688216553671,0.12624299,1929.2,1929.1,12.55884504]
[1688216553973,2.99548468,1929.4,1929.1,7.55884504]
[1688216553974,0.7351169,1929.4,1929.1,7.55884504]
[1688216554271,0.12385082,1929.2,1929.1,8.52664504]
[1688216554573,0.12385985,1929.2,1929.1,15.72064504]
[1688216554870,0.31876883,1929.4,1929.1,15.72064504]
[1688216555074,0.31876883,1929.4,1929.3,0.31103]
[1688216555278,0.60548518,1929.4,1929.3,0.31103]
[1688216555968,0.60548518,1929.4,1929.3,4.97803]
[1688216556272,0.31876883,1929.4,1929.3,4.97803]
[1688216557176,0.44267617,1929.4,1929.3,4.97803]
[1688216559464,0.13165617,1929.4,1929.3,4.97803]
[1688216560671,0.13165617,1929.4,1929.3,8.18583]
[1688216564981,0.13165617,1929.4,1929.3,8.59330375]
[1688216568777,0.72939252,1929.4,1929.3,5.38550375]
[1688216569283,10.46609252,1929.4,1929.3,5.71850375]
[1688216569481,12.7264603,1929.4,1929.3,5.71850375]
[1688216569682,12.7264603,1929.4,1929.3,5.31103]
[1688216574084,10.46609252,1929.4,1929.3,5.31103]
[1688216576282,5.21235617,1929.4,1929.3,9.97803]
[1688216577994,0.44267617,1929.4,1929.3,9.97803]
[1688216581004,0.72939252,1929.4,1929.3,9.97803]
[1688216582105,0.72939252,1929.4,1929.3,5.31103]
[1688216582500,2.99874306,1929.4,1929.3,5.31103]
[1688216585402,0.13165617,1929.4,1929.3,9.97803]
[1688216586607,0.72939252,1929.4,1929.3,9.97803]
[1688216588403,0.13165617,1929.4,1929.3,9.97803]
[1688216588601,0.13165617,1929.4,1929.3,13.18583]
[1688216589003,0.44267617,1929.4,1929.3,13.18583]
[1688216589699,0.13165617,1929.4,1929.3,13.18583]
[1688216590507,0.44267617,1929.4,1929.3,13.18583]
[1688216591005,0.44267617,1929.4,1929.3,9.97803]
[1688216591203,0.72939252,1929.4,1929.3,9.97803]
[1688216592214,5.38539252,1929.4,1929.3,5.31103]
[1688216592411,7.6614969,1929.4,1929.3,5.31103]
[1688216596211,5.38539252,1929.4,1929.3,5.31103]
[1688216597114,5.07437252,1929.4,1929.3,5.31103]
[1688216597321,5.09867617,1929.4,1929.3,5.31103]
[1688216597716,5.38539252,1929.4,1929.3,8.51883]
[1688216598425,5.09867617,1929.4,1929.3,8.51883]
[1688216599520,5.09867617,1929.4,1929.3,5.31103]
[1688216599721,5.38539252,1929.4,1929.3,5.31103]
[1688216600320,7.6614969,1929.4,1929.3,5.31103]
[1688216609618,5.38539252,1929.4,1929.3,5.31103]
[1688216610020,7.6614969,1929.4,1929.3,5.31103]
[1688216614820,7.6614969,1929.4,1929.3,5.0]
[1688216616421,5.38539252,1929.4,1929.3,5.0]
[1688216616617,7.6614969,1929.4,1929.3,5.0]
[1688216623925,7.6614969,1929.4,1929.3,5.31103]
[1688216627934,7.6614969,1929.4,1929.3,5.0]
[1688216628128,0.56748412,1929.3,1929.1,0.00777504]
[1688216628329,8.47256635,1929.2,1929.1,0.31883504]
[1688216628527,8.53588811,1929.2,1929.1,0.31883504]
[1688216629028,13.73438811,1929.2,1929.1,0.31883504]
[1688216629230,7.60419249,1929.2,1929.1,0.31883504]
[1688216629432,5.32808811,1929.2,1929.1,0.31883504]
[1688216629632,5.32808811,1929.2,1929.1,0.00777504]
[1688216629830,8.53588811,1929.2,1929.1,0.00777504]
[1688216630234,10.81199249,1929.2,1929.1,0.00777504]
[1688216631333,0.56748412,1929.1,1929.0,4.8862]
[1688216631534,7.8106385,1929.1,1929.0,4.8862]
[1688216631731,7.87385002,1929.1,1928.8,5.57988012]
[1688216632036,4.628,1928.9,1928.8,10.86228012]
[1688216632332,5.50656412,1928.9,1928.8,5.2824]
[1688216632529,7.845894,1928.9,1928.8,5.2824]
[1688216632729,7.845894,1928.9,1928.8,5.5935]
[1688216633135,7.845894,1928.9,1928.7,0.42136438]
[1688216633334,4.9391,1928.8,1928.7,0.31888665]
[1688216633537,5.22581635,1928.8,1928.7,0.00777665]
[1688216633740,5.28906602,1928.8,1928.7,0.31888665]
[1688216633937,5.22581635,1928.8,1928.7,0.31888665]
[1688216634132,5.22581635,1928.8,1928.7,0.42541588]
[1688216634845,0.3111,1928.8,1928.7,5.09241588]
[1688216635236,0.3111,1928.8,1928.7,4.98588665]
[1688216635736,0.3111,1928.8,1928.7,8.19368665]
[1688216636845,0.59781635,1928.8,1928.7,8.19368665]
[1688216637045,0.59781635,1928.8,1928.7,4.98588665]
[1688216637342,5.26481635,1928.8,1928.7,0.00777665]
[1688216637836,5.26481635,1928.8,1928.7,0.09115965]
[1688216638438,10.14291635,1928.8,1928.7,0.09115965]
[1688216638944,13.35071635,1928.8,1928.7,0.09115965]
[1688216639437,13.35071635,1928.8,1928.7,0.11557973]
[1688216640040,0.78531883,1929.4,1928.7,9.1556902]
[1688216640344,0.31102,1929.3,1929.2,0.31103]
[1688216640537,0.59773635,1929.3,1929.2,0.59774635]
[1688216640848,0.28671635,1929.3,1929.2,0.59774635]
[1688216641046,4.67474883,1929.4,1929.2,0.59774635]
[1688216641339,0.00774883,1929.4,1929.3,8.42428412]
[1688216641541,0.00774883,1929.4,1929.3,8.73530412]
[1688216641943,0.31874883,1929.4,1929.3,8.73530412]
[1688216642542,0.60546518,1929.4,1929.3,8.73530412]
[1688216642939,0.60546518,1929.4,1929.3,5.52750412]
[1688216643338,0.60546518,1929.4,1929.3,4.96002]
[1688216643541,5.27246518,1929.4,1929.3,0.31102]
[1688216644043,10.15546518,1929.4,1929.3,0.31102]
[1688216645245,10.15546518,1929.4,1929.3,3.51882]
[1688216645447,10.15546518,1929.4,1929.3,3.80553635]
[1688216645642,10.15546518,1929.4,1929.3,3.51882]
[1688216646547,10.15546518,1929.4,1929.1,0.77759]
[1688216646847,4.656,1929.2,1929.1,0.31105]
[1688216647039,13.21154635,1929.2,1928.8,0.93319]
[1688216647238,4.628,1928.9,1928.8,0.93319]
[1688216647439,4.93908,1928.9,1928.7,3.21557665]
[1688216647643,8.12251635,1928.8,1928.7,0.00777665]
[1688216647946,11.26570585,1928.8,1928.7,0.16961804]
[1688216648140,11.26570585,1928.8,1928.7,0.19122059]
[1688216648342,0.31113,1928.6,1928.1,8.16798]
[1688216648544,4.97819,1928.2,1928.1,3.2078]
[1688216648742,4.97819,1928.2,1928.1,0.41779831]
[1688216648743,5.26490635,1928.2,1928.1,0.41779831]
[1688216649049,5.83239047,1928.2,1927.8,0.31126]
[1688216649251,4.667,1928.1,1928.0,0.00777948]
[1688216649547,0.56748412,1928.2,1928.0,5.84352583]
[1688216649846,0.00777948,1928.3,1928.2,0.41519]
[1688216650055,0.00777948,1928.3,1928.2,5.36890635]
[1688216650951,0.00777948,1928.3,1928.2,7.96490635]
[1688216653845,0.73508139,1928.9,1928.2,7.96490635]
[1688216654052,0.3111,1928.8,1928.7,0.31111]
[1688216654246,0.59781635,1928.8,1928.7,0.31111]
[1688216655152,1.16530047,1928.8,1928.5,13.13515]
[1688216655357,1.16530047,1928.8,1928.6,0.31112]
[1688216655657,0.59781635,1928.8,1928.6,0.59783635]
[1688216656462,0.59781635,1928.8,1928.6,0.31112]
[1688216658350,0.59781635,1928.8,1928.6,0.59783635]
[1688216658947,0.00777706,1928.9,1928.7,7.81548412]
[1688216659252,0.31885706,1928.9,1928.8,0.59781635]
[1688216662061,0.31885706,1928.9,1928.8,7.86081635]
[1688216662259,0.42856433,1928.9,1928.8,7.86081635]
[1688216662957,0.11748433,1928.9,1928.8,7.86081635]
[1688216663159,0.158133,1928.9,1928.8,7.86081635]
[1688216663953,0.469213,1928.9,1928.8,7.86081635]
[1688216665453,0.42862502,1928.9,1928.8,7.86081635]
[1688216667054,0.11754502,1928.9,1928.8,7.86081635]
[1688216667452,0.11754502,1928.9,1928.8,11.06861635]
[1688216668063,0.42862502,1928.9,1928.8,11.06861635]
[1688216668763,0.11754502,1928.9,1928.8,11.06861635]
[1688216677172,0.21931403,1928.9,1928.8,11.06861635]
[1688216680067,0.21931403,1928.9,1928.8,11.47692764]
[1688216688277,0.50603038,1928.9,1928.8,11.47692764]
[1688216688979,0.81711038,1928.9,1928.8,11.19021129]
[1688216692080,0.81711038,1928.9,1928.8,11.47692764]
[1688216692385,0.81711038,1928.9,1928.8,7.98241129]
[1688216695683,0.81711038,1928.9,1928.8,7.67131129]
[1688216695977,0.81711038,1928.9,1928.8,7.98241129]
[1688216696183,0.92011038,1928.9,1928.8,5.25101129]
[1688216696381,0.92011038,1928.9,1928.8,5.56211129]
[1688216696583,0.92011038,1928.9,1928.8,4.12491129]
[1688216696880,0.92011038,1928.9,1928.7,0.77776]
[1688216697177,0.56748412,1928.8,1928.7,0.77776]
[1688216697376,1.07139974,1928.8,1928.7,0.77776]
[1688216697885,0.50391562,1928.8,1928.7,1.06447635]
[1688216699280,0.50391562,1928.8,1928.7,8.32747635]
[1688216699786,0.19281562,1928.8,1928.7,8.32747635]
[1688216701274,0.50391562,1928.8,1928.7,8.32747635]
[1688216701475,0.19281562,1928.8,1928.7,8.32747635]
[1688216705674,0.47953197,1928.8,1928.7,8.04076]
[1688216705874,0.11741336,1928.8,1928.7,8.32747635]
[1688216711281,0.40412971,1928.8,1928.7,8.32747635]
[1688216711487,0.40412971,1928.8,1928.7,8.04076]
[1688216711784,0.67464472,1928.8,1928.7,8.04076]
[1688216711983,0.67464472,1928.8,1928.7,0.77776]
[1688216712190,7.85181635,1928.8,1928.6,1.1834539]
[1688216712489,0.56748412,1928.7,1928.6,0.77781]
[1688216712682,0.87859412,1928.7,1928.6,0.77781]
[1688216715980,5.54759412,1928.7,1928.6,0.77781]
[1688216717187,5.62771576,1928.7,1928.6,0.77781]
[1688216717383,5.62771576,1928.7,1928.6,1.06452635]
[1688216717587,5.62771576,1928.7,1928.6,0.77781]
[1688216718075,0.08012164,1928.7,1928.6,1.06452635]
[1688216718279,0.08012164,1928.7,1928.6,5.70852635]
[1688216718480,0.31887706,1928.9,1928.6,8.91632635]
[1688216718677,0.00777706,1928.9,1928.8,0.3111]
[1688216718887,0.31886706,1928.9,1928.8,0.59781635]
[1688216719686,0.60558341,1928.9,1928.8,0.3111]
[1688216722288,0.16640241,1928.9,1928.8,3.80561635]
[1688216722479,0.16640241,1928.9,1928.8,8.47461635]
[1688216722682,0.2685732,1928.9,1928.8,8.47461635]
[1688216724682,0.86636955,1928.9,1928.8,4.9551]
[1688216725888,5.53536955,1928.9,1928.8,0.3111]
[1688216726091,5.53536955,1928.9,1928.7,0.77775]
[1688216726289,5.42504257,1928.9,1928.8,0.3111]
[1688216726681,8.73584257,1928.9,1928.8,0.3111]
[1688216726884,9.30332669,1928.9,1928.8,0.3111]
[1688216727093,9.30332669,1928.9,1928.5,5.70605]
[1688216727390,9.30332669,1928.9,1928.4,4.40149398]
[1688216727391,4.669,1928.6,1928.4,1.19369398]
[1688216727584,5.83435047,1928.5,1928.4,1.19369398]
[1688216729693,1.16535047,1928.5,1928.4,1.48041033]
[1688216731189,0.31115,1928.5,1928.4,1.48041033]
[1688216731691,0.77787,1928.6,1928.4,1.48041033]
[1688216731887,0.77787,1928.6,1928.4,8.74241033]
[1688216732092,0.31113,1928.6,1928.5,0.87863412]
[1688216733292,0.59784635,1928.6,1928.5,0.31115]
[1688216733493,0.59784635,1928.6,1928.5,0.59786635]
[1688216733494,0.31113,1928.6,1928.5,0.59786635]
[1688216734192,0.59784635,1928.6,1928.5,0.59786635]
[1688216734390,0.59784635,1928.6,1928.5,0.31115]
[1688216734797,0.59784635,1928.6,1928.5,0.59786635]
[1688216734996,0.59784635,1928.6,1928.5,0.31115]
[1688216736887,0.59784635,1928.6,1928.4,1.7611781]
[1688216737087,0.56748412,1928.5,1928.4,1.19369398]
[1688216737283,1.01798,1928.5,1928.4,1.19369398]
[1688216737486,0.45049588,1928.5,1928.4,1.48041033]
[1688216738097,0.73721223,1928.5,1928.4,1.19369398]
[1688216738898,0.73721223,1928.5,1928.4,0.77778]
[1688216740697,0.13934588,1928.5,1928.4,8.32649635]
[1688216740896,0.13934588,1928.5,1928.4,11.53429635]
[1688216746498,0.13934588,1928.5,1928.4,11.63829635]
[1688216746697,0.3111,1928.8,1928.4,11.63829635]
[1688216746900,0.3111,1928.8,1928.6,7.262]
[1688216747200,0.16937378,1928.7,1928.6,8.03979]
[1688216747601,0.48048378,1928.7,1928.6,8.32650635]
[1688216748605,8.01820013,1928.7,1928.6,0.31113]
[1688216748805,11.22600013,1928.7,1928.6,0.31113]
[1688216749107,11.22600013,1928.7,1928.5,0.77784]
[1688216749398,0.87861412,1928.6,1928.5,0.77784]
[1688216749603,0.87861412,1928.6,1928.4,0.31115]
[1688216749803,0.59786635,1928.5,1928.4,0.31115]
[1688216751799,7.85986635,1928.5,1928.4,0.31115]
[1688216752206,7.99708976,1928.5,1928.4,0.31115]
[1688216754994,7.99708976,1928.5,1928.4,0.59786635]
[1688216756204,7.99708976,1928.5,1928.4,0.31115]
[1688216756906,7.99708976,1928.5,1928.4,0.59786635]
[1688216757309,7.99708976,1928.5,1928.4,0.31115]
[1688216759811,0.13722341,1928.5,1928.4,0.59786635]
[1688216760109,4.50909685,1928.9,1928.4,0.59786635]
[1688216760110,0.00777706,1928.9,1928.5,5.104]
[1688216760305,0.00777706,1928.9,1928.7,10.4698]
[1688216760613,0.00777706,1928.9,1928.8,0.59781635]
[1688216760912,0.00777706,1928.9,1928.8,1.16530047]
[1688216762211,0.31885706,1928.9,1928.8,1.16530047]
[1688216765710,0.00777706,1928.9,1928.8,1.16530047]
[1688216767013,0.00777706,1928.9,1928.8,8.42730047]
[1688216767614,0.31102,1929.3,1928.8,8.42730047]
[1688216767913,0.31102,1929.3,1929.2,0.31103]
[1688216768117,0.31102,1929.3,1929.2,1.16523047]
[1688216770922,0.59773635,1929.3,1929.2,1.16523047]
[1688216773425,0.31102,1929.3,1929.2,1.16523047]
[1688216774227,0.59773635,1929.3,1929.2,1.16523047]
[1688216774921,0.31102,1929.3,1929.2,1.16523047]
[1688216777829,0.59773635,1929.3,1929.2,1.16523047]
[1688216778131,0.31102,1929.3,1929.2,1.16523047]
[1688216778832,0.59773635,1929.3,1929.2,0.59774635]
[1688216779032,0.59773635,1929.3,1929.2,0.31103]
[1688216779232,0.31102,1929.3,1929.2,0.59774635]
[1688216779540,0.59773635,1929.3,1929.2,0.59774635]
[1688216779924,0.31102,1929.3,1929.2,0.59774635]
[1688216780534,8.39402487,1929.4,1929.2,0.59774635]
[1688216782233,0.31923776,1929.3,1929.2,0.59774635]
[1688216782434,8.45402487,1929.4,1929.2,0.59774635]
[1688216786053,0.28671635,1929.3,1929.2,0.59774635]
[1688216786247,8.45402487,1929.4,1929.2,0.59774635]
[1688216786744,0.28671635,1929.3,1929.2,0.31103]
[1688216786951,1.16521047,1929.3,1929.2,0.31103]
[1688216790858,1.16521047,1929.3,1929.2,4.97803]
[1688216791057,0.31101,1929.3,1929.2,5.26474635]
[1688216791262,5.82502487,1929.4,1929.2,5.26474635]
[1688216791757,6.11174122,1929.4,1929.2,5.26474635]
[1688216792061,5.70502033,1929.4,1929.2,5.26474635]
[1688216795254,0.87850412,1929.3,1929.2,4.97803]
[1688216795653,5.70502033,1929.4,1929.2,5.26474635]
[1688216795863,5.41830398,1929.4,1929.2,5.26474635]
[1688216797253,0.32037755,1929.3,1929.2,5.26474635]
[1688216797458,4.64074398,1929.4,1929.2,5.83223047]
[1688216798259,4.64074398,1929.4,1929.3,3.51882]
[1688216799961,4.95174398,1929.4,1929.3,3.51882]
[1688216800159,5.80594445,1929.4,1929.3,0.31102]
[1688216800364,5.83994445,1929.4,1929.2,0.31103]
[1688216800559,4.97802,1929.3,1929.2,0.31103]
[1688216803153,4.667,1929.3,1929.2,0.31103]
[1688216803354,8.55775203,1929.4,1929.2,4.97803]
[1688216803554,8.55775203,1929.4,1929.2,5.26474635]
[1688216808963,6.92600156,1929.4,1929.2,5.26474635]
[1688216809171,6.92600156,1929.4,1929.3,0.87850412]
[1688216809859,7.21271791,1929.4,1929.3,0.87850412]
[1688216810971,7.21271791,1929.4,1929.3,0.31102]
[1688216811766,2.27900156,1929.4,1929.3,8.18582]
[1688216811971,0.00774398,1929.4,1929.3,8.18582]
[1688216812361,0.3260104,1929.4,1929.3,8.18582]
[1688216818972,5.3040104,1929.4,1929.3,3.51882]
[1688216819169,5.27972675,1929.4,1929.3,3.51882]
[1688216819367,4.9930104,1929.4,1929.3,3.51882]
[1688216820179,5.27972675,1929.4,1929.3,3.51882]
[1688216820364,4.9930104,1929.4,1929.3,3.62282]
[1688216821272,5.27972675,1929.4,1929.3,3.62282]
[1688216821680,4.9930104,1929.4,1929.3,3.62282]
[1688216822179,0.3260104,1929.4,1929.3,8.17982]
[1688216830883,0.3260104,1929.4,1929.3,8.59882764]
[1688216831089,0.92372675,1929.4,1929.3,8.59882764]
[1688216831981,0.3260104,1929.4,1929.3,8.59882764]
[1688216836683,0.31788739,1929.4,1929.3,8.60482764]
[1688216837084,2.27125758,1929.6,1929.3,8.60482764]
[1688216837281,2.27125758,1929.6,1929.5,4.661]
[1688216837477,2.27125758,1929.6,1929.5,4.97199]
[1688216839280,2.26317661,1929.6,1929.5,4.97199]
[1688216841981,2.26317661,1929.6,1929.5,8.17979]
[1688216842186,5.66986756,1929.7,1929.5,8.17979]
[1688216842387,0.41306756,1929.7,1929.6,5.52120047]
[1688216842584,5.223,1929.8,1929.6,5.83217047]
[1688216842788,5.223,1929.8,1929.7,4.667]
[1688216843091,5.223,1929.8,1929.7,4.97795]
[1688216843689,5.36473,1929.9,1929.7,4.97795]
[1688216843893,5.36473,1929.9,1929.8,0.28671635]
[1688216844095,5.36473,1929.9,1929.8,0.59765635]
[1688216844282,5.80862946,1929.9,1929.8,0.59765635]
[1688216844487,5.80862946,1929.9,1929.8,1.16514047]
[1688216844690,5.80862946,1929.9,1929.8,5.82614047]
[1688216845888,5.71688972,1929.9,1929.8,5.82614047]
[1688216846089,5.40595972,1929.9,1929.8,5.82614047]
[1688216847789,0.44389946,1929.9,1929.8,5.82614047]
[1688216849395,0.56606527,1929.9,1929.8,5.82614047]
[1688216849593,0.42032171,1930.0,1929.8,10.93014047]
[1688216849785,0.31085,1930.4,1930.0,0.3109]
[1688216849985,5.81240872,1930.4,1930.3,4.97785]
[1688216850193,10.84912507,1930.4,1930.3,0.31085]
[1688216850400,10.42966635,1930.4,1930.3,0.31085]
[1688216851194,10.32666635,1930.4,1930.3,0.31085]
[1688216851400,10.32666635,1930.4,1930.3,0.59756635]
[1688216851699,10.03995,1930.4,1930.3,0.31085]
[1688216851896,10.03995,1930.4,1930.3,0.59756635]
[1688216852290,10.32666635,1930.4,1930.3,0.59756635]
[1688216852902,10.32666635,1930.4,1930.3,0.31085]
[1688216853396,10.03995,1930.4,1930.3,0.59756635]
[1688216853592,10.31266635,1930.4,1930.3,0.59756635]
[1688216853795,10.02595,1930.4,1930.3,0.59756635]
[1688216855595,10.31266635,1930.4,1930.3,0.59756635]
[1688216855805,10.02595,1930.4,1930.3,0.59756635]
[1688216857396,10.58130529,1930.4,1930.3,0.59756635]
[1688216859194,13.20138553,1930.4,1930.3,0.59756635]
[1688216859398,12.91466918,1930.4,1930.3,0.59756635]
[1688216859799,7.97081918,1930.4,1930.3,5.26456635]
[1688216860298,5.94829529,1930.4,1930.3,5.26456635]
[1688216860498,8.28467808,1930.4,1930.3,5.26456635]
[1688216861595,6.23501164,1930.4,1930.3,5.26456635]
[1688216861901,5.94829529,1930.4,1930.3,5.26456635]
[1688216862395,6.23501164,1930.4,1930.3,5.26456635]
[1688216862602,5.94829529,1930.4,1930.3,5.26456635]
[1688216866802,0.86619529,1930.4,1930.3,5.26456635]
[1688216867101,0.55535529,1930.4,1930.3,5.26456635]
[1688216868091,0.86619529,1930.4,1930.3,8.47236635]
[1688216868596,1.15291164,1930.4,1930.3,8.18565]
[1688216868793,0.55535529,1930.4,1930.3,5.26456635]
[1688216868990,0.86619529,1930.4,1930.3,4.97785]
[1688216869192,1.15291164,1930.4,1930.3,4.97785]
[1688216869397,3.49086221,1930.4,1930.3,4.97785]
[1688216871400,8.13786221,1930.4,1930.3,0.31085]
[1688216874208,7.58250692,1930.4,1930.3,0.31085]
[1688216875512,11.38251879,1930.5,1930.3,5.25856635]
[1688216875702,0.07900467,1930.4,1930.3,5.25856635]
[1688216876013,0.09949166,1930.4,1930.3,8.46636635]
[1688216876311,0.09949166,1930.4,1930.3,9.03385047]
[1688216884012,0.09949166,1930.4,1930.3,9.13785047]
[1688216886823,0.09949166,1930.4,1930.3,9.03385047]
[1688216887127,0.69705801,1930.4,1930.3,5.25856635]
[1688216887326,0.41034166,1930.4,1930.3,5.25856635]
[1688216888323,0.69705801,1930.4,1930.3,4.97185]
[1688216888521,0.96768311,1930.4,1930.3,4.97185]
[1688216888724,3.31301094,1930.4,1930.3,4.97185]
[1688216889220,3.02629459,1930.4,1930.3,5.25856635]
[1688216890324,3.31301094,1930.4,1930.3,5.25856635]
[1688216891031,3.31301094,1930.4,1930.3,4.97185]
[1688216891230,3.00216094,1930.4,1930.3,5.25856635]
[1688216891429,2.71544459,1930.4,1930.3,5.25856635]
[1688216892736,0.37011676,1930.4,1930.3,5.25856635]
[1688216893325,0.37011676,1930.4,1930.3,8.46636635]
[1688216894142,0.96768311,1930.4,1930.3,8.17965]
[1688216894335,3.31301094,1930.4,1930.3,8.17965]
[1688216894535,3.31301094,1930.4,1930.3,8.46636635]
[1688216894735,3.02629459,1930.4,1930.3,8.46636635]
[1688216894936,3.31301094,1930.4,1930.3,8.46636635]
[1688216895332,3.02629459,1930.4,1930.3,8.46636635]
[1688216897138,3.31301094,1930.4,1930.3,4.97185]
[1688216898342,3.31301094,1930.4,1930.3,5.25856635]
[1688216898544,2.94289418,1930.4,1930.3,4.97185]
[1688216898731,0.59756635,1930.4,1930.3,4.97185]
[1688216898940,0.31085,1930.4,1930.3,5.25856635]
[1688216899635,0.59756635,1930.4,1930.3,4.97185]
[1688216901447,0.59756635,1930.4,1930.3,5.37615504]
[1688216901641,5.26456635,1930.4,1930.3,0.31085]
[1688216901937,0.103,1930.3,1930.2,4.66877061]
[1688216902142,13.48915412,1930.3,1930.2,0.00777061]
[1688216902347,15.83448195,1930.3,1929.8,0.72688049]
[1688216902536,4.97793,1929.9,1929.8,0.3109]
[1688216902731,5.83213047,1929.9,1929.8,0.3109]
[1688216903136,5.83213047,1929.9,1929.8,0.56223777]
[1688216903344,5.83213047,1929.9,1929.8,0.25133777]
[1688216903549,5.83213047,1929.9,1929.8,0.56228777]
[1688216903737,5.83213047,1929.9,1929.8,0.31095]
[1688216905233,1.16513047,1929.9,1929.8,4.97795]
[1688216905437,3.99289255,1930.0,1929.8,5.26466635]
[1688216905748,3.8131989,1930.0,1929.9,0.26239714]
[1688216905939,3.8131989,1930.0,1929.9,0.57332714]
[1688216906144,6.15852673,1930.0,1929.9,0.57332714]